bitfinex/quotes_SOLUSD_20250719
["timestamp","ask_amount","ask_price","bid_price","bid_amount"]
[1752898630785,2.93759266,177.57,177.54,0.7]
[1752898630991,2.93759266,177.57,177.53,2.93759266]
[1752898631193,2.93759266,177.57,177.55,0.7]
[1752898631684,8.56937031,177.57,177.53,2.93759266]
[1752898631896,2.93759266,177.56,177.54,0.7]
[1752898632287,5.63177765,177.57,177.54,0.7]
[1752898632492,5.63177765,177.57,177.51,72.0178]
[1752898632493,2.93759266,177.56,177.55,0.7]
[1752898632789,5.63177765,177.57,177.53,0.7]
[1752898632963,2.93759266,177.56,177.53,0.7]
[1752898633564,2.93759266,177.56,177.54,0.7]
[1752898634985,8.56949483,177.56,177.54,0.7]
[1752898635596,2.93759266,177.56,177.52,2.93759266]
[1752898635783,8.56921839,177.57,177.55,0.7]
[1752898636176,2.93759266,177.57,177.56,0.7]
[1752898636900,2.93759266,177.58,177.56,0.7]
[1752898637071,8.56854034,177.59,177.57,0.7]
[1752898637897,2.93759266,177.58,177.55,41.4627]
[1752898638089,2.93759266,177.57,177.56,0.7]
[1752898638897,2.93759266,177.57,177.55,41.4627]
[1752898639200,2.93759266,177.57,177.55,42.1627]
[1752898639984,8.56917457,177.57,177.55,42.1627]
[1752898640293,3.61759266,177.56,177.54,26.0]
[1752898640498,2.93759266,177.55,177.54,26.0]
[1752898640798,3.61759266,177.55,177.53,39.78]
[1752898641001,2.93759266,177.54,177.53,39.78]
[1752898642209,8.57012617,177.54,177.53,39.78]
[1752898645789,5.63221627,177.55,177.53,40.48]
[1752898646096,2.93759266,177.54,177.53,40.48]
[1752898646400,2.93759266,177.54,177.53,39.78]
[1752898647199,8.57012617,177.54,177.53,39.78]
[1752898648389,9.25012617,177.54,177.53,39.78]
[1752898649176,9.25012617,177.54,177.52,0.03]
[1752898649394,3.61759266,177.53,177.52,0.03]
[1752898650012,9.25044344,177.53,177.52,0.03]
[1752898653586,8.57044344,177.53,177.52,0.03]
[1752898657397,9.25044344,177.53,177.52,0.03]
[1752898657785,8.57044344,177.53,177.52,0.03]
[1752898658209,8.57044344,177.53,177.52,0.7]
[1752898658991,1.87976789,177.53,177.52,0.7]
[1752898659899,1.87976789,177.53,177.52,0.03]
[1752898660594,1.87976789,177.53,177.52,0.7]
[1752898661707,7.51261867,177.53,177.52,0.7]
[1752898661909,7.51261867,177.53,177.52,0.03]
[1752898663384,8.19261867,177.53,177.52,0.03]
[1752898667595,8.25261867,177.53,177.52,0.03]
[1752898668313,7.57261867,177.53,177.52,0.03]
[1752898669617,8.25261867,177.53,177.52,0.03]
[1752898671421,6.37285078,177.53,177.52,0.03]
[1752898671628,8.25261867,177.53,177.52,0.03]
[1752898673519,6.37285078,177.53,177.52,0.03]
[1752898673707,8.25261867,177.53,177.52,0.03]
[1752898674904,8.25261867,177.53,177.51,0.03]
[1752898675218,2.55976789,177.52,177.51,0.03]
[1752898676622,8.19293598,177.52,177.51,0.03]
[1752898678712,8.19293598,177.52,177.5,0.03]
[1752898678914,1.87976789,177.51,177.5,0.03]
[1752898679222,2.55976789,177.51,177.5,0.03]
[1752898680226,8.19325332,177.51,177.5,0.03]
[1752898683826,15.71232488,177.51,177.48,0.03]
[1752898684001,9.39883945,177.49,177.48,1e-08]
[1752898684398,10.07883945,177.49,177.48,1e-08]
[1752898685433,15.71295968,177.49,177.48,1e-08]
[1752898685604,9.39883945,177.48,177.47,1e-08]
[1752898685804,10.07883945,177.48,177.47,1e-08]
[1752898686435,26.86352342,177.48,177.47,1e-08]
[1752898686800,32.4979611,177.48,177.47,1e-08]
[1752898691015,6.31443768,177.48,177.47,1e-08]
[1752898691334,15.71327713,177.48,177.47,1e-08]
[1752898691832,16.78468397,177.47,177.43,0.2]
[1752898692135,14.47810431,177.44,177.43,0.2]
[1752898692522,15.15810431,177.44,177.43,0.2]
[1752898693042,62.43717587,177.44,177.43,0.2]
[1752898693331,21.99717587,177.44,177.43,0.2]
[1752898693538,54.91810431,177.44,177.43,0.2]
[1752898694044,60.55381215,177.44,177.43,0.2]
[1752898694222,68.07288371,177.44,177.43,0.2]
[1752898694721,70.91164173,177.44,177.43,0.2]
[1752898695741,61.51280228,177.44,177.43,0.2]
[1752898695928,63.39257017,177.44,177.43,0.2]
[1752898696925,63.39257017,177.44,177.37,1.5551]
[1752898696926,16.78468397,177.43,177.32,0.65]
[1752898697130,1.87976789,177.35,177.33,0.65]
[1752898697612,7.51833569,177.35,177.33,0.65]
[1752898698539,7.51833569,177.35,177.3,1.6248]
[1752898698725,1.87976789,177.35,177.34,0.85]
[1752898698904,2.94330184,177.35,177.34,0.85]
[1752898699509,6.31761416,177.38,177.34,0.85]
[1752898699709,6.31761416,177.38,177.35,0.65]
[1752898699941,2.94330184,177.36,177.35,0.65]
[1752898700529,2.94330184,177.36,177.34,0.2]
[1752898700728,2.94330184,177.36,177.34,0.85]
[1752898700939,2.94330184,177.35,177.34,0.85]
[1752898701126,2.94330184,177.35,177.34,0.2]
[1752898701818,2.94330184,177.35,177.34,0.85]
[1752898702007,5.63760137,177.39,177.34,0.85]
[1752898702340,2.94330184,177.36,177.35,0.65]
[1752898702541,6.31760137,177.39,177.35,0.65]
[1752898702542,5.63760137,177.39,177.35,0.65]
[1752898702734,2.94330184,177.39,177.35,29.59330184]
[1752898703038,2.94330184,177.41,177.37,2.94330184]
[1752898703342,2.94330184,177.41,177.38,0.65]
[1752898703637,5.63605028,177.43,177.38,3.59330184]
[1752898703810,12.59833642,177.44,177.4,2.94330184]
[1752898704012,12.59833642,177.44,177.41,0.65]
[1752898704208,2.94330184,177.45,177.41,29.59330184]
[1752898704429,5.63510143,177.46,177.42,3.59330184]
[1752898704430,2.94330184,177.46,177.42,3.59330184]
[1752898704637,2.94330184,177.47,177.43,26.65]
[1752898704841,5.63412023,177.49,177.43,30.50190184]
[1752898705038,2.94330184,177.47,177.44,0.65]
[1752898705210,5.63412023,177.49,177.44,3.59330184]
[1752898705414,2.94330184,177.48,177.45,0.65]
[1752898705724,2.94330184,177.48,177.46,0.65]
[1752898706036,2.94330184,177.48,177.44,2.94330184]
[1752898706342,2.94330184,177.48,177.47,0.65]
[1752898706533,8.57742207,177.49,177.47,0.65]
[1752898706714,2.94330184,177.49,177.47,0.65]
[1752898706916,5.63380281,177.5,177.48,0.65]
[1752898707132,2.94330184,177.49,177.48,0.65]
[1752898707328,2.94330184,177.49,177.47,0.65]
[1752898707524,2.94330184,177.49,177.48,0.65]
[1752898707732,2.94330184,177.5,177.48,0.65]
[1752898707933,2.94330184,177.5,177.49,0.65]
[1752898708723,3.00330184,177.51,177.49,0.65]
[1752898708937,0.06,177.51,177.49,0.65]
[1752898709941,0.06,177.51,177.49,3.59330184]
[1752898710344,0.06,177.51,177.5,26.65]
[1752898710722,0.06,177.51,177.5,0.65]
[1752898712452,0.06,177.51,177.5,5.15190184]
[1752898712618,0.06,177.51,177.5,2.2086]
[1752898714249,3.00330184,177.51,177.5,1.5586]
[1752898714455,3.00330184,177.51,177.48,26.65]
[1752898714933,0.06,177.51,177.49,0.65]
[1752898715135,0.06,177.51,177.49,3.59330184]
[1752898715339,0.06,177.51,177.5,3.59330184]
[1752898716049,0.06,177.51,177.5,9.22710465]
[1752898716231,0.06,177.51,177.5,96.82710465]
[1752898716629,0.06,177.51,177.5,98.47410465]
[1752898716831,0.06,177.51,177.5,115.25878862]
[1752898717054,0.06,177.53,177.51,22.67128765]
[1752898717248,0.06,177.53,177.52,63.09460445]
[1752898717449,0.06,177.53,177.52,60.15130261]
[1752898717753,0.06,177.53,177.52,148.41130261]
[1752898717955,0.06,177.53,177.52,150.79128765]
[1752898718135,0.06,177.55,177.53,5.63285078]
[1752898718330,0.06,177.55,177.54,3.50655519]
[1752898718528,0.06,177.55,177.54,4.16655519]
[1752898719153,0.06,177.55,177.54,12.74239054]
[1752898719329,0.06,177.55,177.54,41.08325335]
[1752898719528,0.06,177.55,177.54,44.02655519]
[1752898721442,0.06,177.55,177.54,43.46330184]
[1752898727347,0.06,177.55,177.54,52.60239054]
[1752898727550,0.06,177.55,177.54,156.98707451]
[1752898727874,0.06,177.55,177.54,157.94242116]
[1752898738964,0.06,177.55,177.54,106.56328397]
[1752898739165,0.06,177.55,177.54,127.34]
[1752898742075,3.69330184,177.55,177.54,87.6]
[1752898742264,3.69330184,177.55,177.54,113.6]
[1752898742468,3.69330184,177.55,177.54,153.34]
[1752898742670,3.69330184,177.55,177.53,87.63]
[1752898742983,3.63330184,177.54,177.53,127.37]
[1752898743298,3.63330184,177.54,177.53,87.63]
[1752898743447,0.69,177.54,177.53,87.63]
[1752898743653,0.06,177.55,177.53,88.29]
[1752898743870,0.06,177.55,177.54,39.74]
[1752898744643,3.69330184,177.55,177.54,39.74]
[1752898744865,0.75,177.55,177.54,39.74]
[1752898745060,9.32551811,177.55,177.53,87.63]
[1752898745264,2.94330184,177.54,177.53,127.37]
[1752898745465,3.63330184,177.54,177.53,127.37]
[1752898747076,2.94330184,177.54,177.53,127.37]
[1752898747282,3.00330184,177.55,177.53,127.37]
[1752898747996,0.06,177.55,177.53,127.37]
[1752898748181,3.00330184,177.55,177.53,127.37]
[1752898748873,2.94330184,177.54,177.53,127.37]
[1752898749284,3.66330184,177.54,177.53,127.37]
[1752898749654,2.94330184,177.54,177.53,127.37]
[1752898750289,0.06,177.55,177.53,127.37]
[1752898750290,3.00330184,177.55,177.53,127.37]
[1752898751294,0.06,177.55,177.53,128.04]
[1752898751463,0.06,177.55,177.54,0.67]
[1752898751896,0.06,177.55,177.54,91.21330184]
[1752898752071,0.06,177.55,177.54,91.77655519]
[1752898752473,0.06,177.55,177.54,108.56123916]
[1752898752984,0.06,177.55,177.54,111.504541]
[1752898753329,0.06,177.55,177.54,117.13707451]
[1752898753467,0.06,177.55,177.54,118.16642116]
[1752898757206,0.06,177.56,177.55,109.95690024]
[1752898757508,0.06,177.56,177.55,153.8734237]
[1752898757807,0.06,177.56,177.55,153.31020208]
[1752898757972,0.06,177.56,177.55,150.36690024]
[1752898758171,0.06,177.56,177.55,153.31020208]
[1752898760230,0.06,177.56,177.55,302.01020208]
[1752898761288,0.06,177.56,177.55,262.27020208]
[1752898761489,0.06,177.56,177.55,302.13020208]
[1752898766015,0.06,177.59,177.58,16.78468397]
[1752898766307,0.06,177.59,177.58,147.55111228]
[1752898766517,0.06,177.59,177.58,147.65798581]
[1752898767088,0.06,177.59,177.58,146.98798581]
[1752898769106,0.06,177.59,177.58,152.61925059]
[1752898771116,0.06,177.59,177.58,144.04468397]
[1752898773425,0.78,177.59,177.58,144.04468397]
[1752898779032,0.78,177.59,177.58,143.96468397]
[1752898779834,3.72330184,177.59,177.55,0.03]
[1752898780041,2.94330184,177.58,177.56,39.76]
[1752898780204,3.66330184,177.57,177.56,39.76]
[1752898780822,3.66330184,177.57,177.55,0.03]
[1752898781025,3.66330184,177.56,177.55,0.03]
[1752898781222,3.66330184,177.56,177.55,39.81]
[1752898781811,9.29520091,177.56,177.55,39.81]
[1752898782511,9.29520091,177.56,177.55,0.03]
[1752898783634,12.23850275,177.56,177.55,0.03]
[1752898788339,9.29520091,177.56,177.55,0.03]
[1752898797827,6.35189907,177.56,177.55,0.03]
[1752898798027,9.29520091,177.56,177.55,0.03]
[1752898800236,2.94330184,177.56,177.55,0.03]
[1752898800440,2.94330184,177.56,177.55,39.77]
[1752898801342,3.66330184,177.56,177.55,39.77]
[1752898802129,9.29520091,177.56,177.55,39.77]
[1752898802752,12.23850275,177.56,177.55,0.03]
[1752898803359,9.29520091,177.56,177.55,0.03]
[1752898804128,12.23850275,177.56,177.55,0.03]
[1752898804970,9.29520091,177.56,177.55,0.03]
[1752898805962,12.23850275,177.56,177.55,0.03]
[1752898807545,9.29520091,177.56,177.55,0.03]
[1752898808968,8.57520091,177.56,177.55,0.03]
[1752898809973,5.69158457,177.57,177.55,0.03]
[1752898810184,0.06,177.57,177.55,26.03]
[1752898810363,0.06,177.57,177.56,39.74]
[1752898810672,3.00330184,177.57,177.56,39.74]
[1752898810879,3.00330184,177.57,177.55,0.03]
[1752898811120,0.75,177.57,177.56,26.0]
[1752898812200,3.69330184,177.57,177.56,26.0]
[1752898812507,9.32488375,177.57,177.56,26.0]
[1752898813808,9.46511556,177.57,177.55,0.03]
[1752898814007,8.71543272,177.56,177.55,26.03]
[1752898814195,9.40543272,177.56,177.55,0.03]
[1752898815393,9.40543272,177.56,177.55,26.03]
[1752898816125,9.40543272,177.56,177.55,0.03]
[1752898818322,8.71543272,177.56,177.55,0.03]
[1752898818498,5.63189907,177.56,177.55,0.03]
[1752898818701,8.71543272,177.56,177.55,0.03]
[1752898819827,9.81868042,177.56,177.55,0.03]
[1752898820425,10.50868042,177.56,177.55,0.03]
[1752898835256,5.63189907,177.56,177.55,0.03]
[1752898835439,9.81868042,177.56,177.55,0.03]
[1752898837469,10.51868042,177.56,177.55,0.03]
[1752898838350,8.3735627,177.54,177.53,0.03]
[1752898838534,4.18678135,177.54,177.53,0.03]
[1752898839073,4.88678135,177.54,177.53,0.03]
[1752898840364,10.51931486,177.54,177.53,0.03]
[1752898840672,9.81931486,177.54,177.53,0.03]
[1752898840873,10.51931486,177.54,177.53,0.03]
[1752898842559,5.63253351,177.54,177.53,0.03]
[1752898842745,9.81931486,177.54,177.53,0.03]
[1752898843653,9.81931486,177.54,177.53,0.68]
[1752898844868,4.18678135,177.54,177.53,0.68]
[1752898845541,5.63228976,177.55,177.53,26.68]
[1752898845542,9.81907111,177.55,177.53,26.68]
[1752898845756,9.81907111,177.55,177.54,0.65]
[1752898846470,4.18678135,177.55,177.54,0.65]
[1752898846647,9.81899762,177.55,177.53,26.03]
[1752898847251,9.81899762,177.55,177.53,26.68]
[1752898848869,9.818762,177.56,177.54,40.39]
[1752898849047,4.18678135,177.55,177.54,40.39]
[1752898851273,4.18678135,177.55,177.54,39.74]
[1752898851853,5.63198065,177.56,177.54,39.74]
[1752898852052,4.18678135,177.55,177.54,39.74]
[1752898853683,9.81899762,177.55,177.54,39.74]
[1752898860382,4.18678135,177.55,177.54,39.74]
[1752898861485,6.33189907,177.56,177.54,39.74]
[1752898861660,9.81868042,177.56,177.54,40.39]
[1752898861988,9.81868042,177.56,177.55,0.65]
[1752898862187,5.69158191,177.57,177.54,39.74]
[1752898862368,0.06,177.57,177.56,26.0]
[1752898862566,0.06,177.57,177.56,65.72]
[1752898862778,0.06,177.57,177.56,66.37]
[1752898867891,0.06,177.57,177.56,87.90465522]
[1752898868089,0.06,177.57,177.56,93.53655429]
[1752898872297,4.94678135,177.57,177.53,0.03]
[1752898872499,4.88678135,177.56,177.53,17.51468397]
[1752898872719,4.88678135,177.56,177.54,39.7]
[1752898873374,4.88678135,177.56,177.55,26.0]
[1752898873569,4.88678135,177.56,177.55,65.7]
[1752898873772,10.51868042,177.56,177.55,65.7]
[1752898874218,9.81868042,177.56,177.55,65.7]
[1752898875189,10.51868042,177.56,177.55,39.7]
[1752898877013,9.81868042,177.56,177.55,39.7]
[1752898877302,9.87836709,177.57,177.55,40.4]
[1752898880610,4.18678135,177.56,177.55,39.7]
[1752898881174,4.88678135,177.56,177.55,39.7]
[1752898881603,4.18678135,177.56,177.55,39.7]
[1752898882391,9.81868042,177.56,177.55,39.7]
[1752898882690,10.51868042,177.56,177.55,39.7]
[1752898883312,10.51868042,177.56,177.53,0.03]
[1752898883603,6.33221627,177.55,177.54,39.7]
[1752898884002,6.33221627,177.55,177.53,39.73]
[1752898884203,0.7,177.54,177.53,39.73]
[1752898884898,4.88678135,177.54,177.53,39.73]
[1752898885719,10.51931486,177.54,177.53,39.73]
[1752898885892,6.33253351,177.54,177.53,39.73]
[1752898886296,10.51931486,177.54,177.53,39.73]
[1752898886687,9.81931486,177.54,177.53,39.73]
[1752898887209,5.63228967,177.55,177.53,40.43]
[1752898887512,5.63228967,177.55,177.54,0.7]
[1752898887813,5.63228967,177.55,177.53,39.73]
[1752898888108,9.81875187,177.56,177.54,0.7]
[1752898888414,9.81875187,177.56,177.55,39.7]
[1752898891516,9.81875187,177.56,177.55,40.4]
[1752898891989,9.81875187,177.56,177.55,39.7]
[1752898892809,10.51875187,177.56,177.55,39.7]
[1752898896601,10.51875187,177.56,177.54,26.0]
[1752898896800,4.87678135,177.55,177.53,39.73]
[1752898897016,4.87678135,177.54,177.53,39.73]
[1752898897724,4.18678135,177.54,177.53,39.73]
[1752898897902,4.18678135,177.56,177.53,40.43]
[1752898898104,4.18678135,177.56,177.53,39.73]
[1752898898333,4.18678135,177.56,177.54,0.7]
[1752898898515,4.18678135,177.55,177.53,40.43]
[1752898898820,4.18678135,177.54,177.53,39.73]
[1752898899009,4.18678135,177.54,177.53,65.73]
[1752898899010,9.81931486,177.54,177.53,65.73]
[1752898902023,5.63253351,177.54,177.53,65.73]
[1752898902208,9.81931486,177.54,177.53,65.73]
[1752898904427,10.50931486,177.54,177.53,65.73]
[1752898906028,11.50931486,177.54,177.53,65.73]
[1752898906925,10.0028746,177.54,177.53,65.73]
[1752898909529,7.32253351,177.54,177.53,65.73]
[1752898909728,10.0028746,177.54,177.53,65.73]
[1752898911433,10.0028746,177.54,177.53,65.71]
[1752898913335,9.3128746,177.54,177.53,65.71]
[1752898913512,10.0028746,177.54,177.53,65.71]
[1752898914931,10.0028746,177.54,177.53,0.03]
[1752898916710,9.3128746,177.54,177.53,0.03]
[1752898917123,6.63253351,177.54,177.53,0.03]
[1752898917439,9.3128746,177.54,177.53,0.03]
[1752898920928,1.0,177.54,177.53,0.73]
[1752898922939,1.0,177.54,177.53,65.89]
[1752898925047,1.0,177.54,177.53,65.66]
[1752898925253,3.68034109,177.54,177.53,65.66]
[1752898925429,1.0,177.54,177.53,65.66]
[1752898926220,1.0,177.54,177.53,66.38]
[1752898926749,1.0,177.54,177.53,66.41]
[1752898927235,1.06,177.54,177.53,66.41]
[1752898927641,1.06,177.54,177.53,65.69]
[1752898930458,1.06,177.54,177.53,66.41]
[1752898932323,1.06,177.54,177.53,65.69]
[1752898935073,1.06,177.54,177.53,66.41]
[1752898935369,1.06,177.54,177.53,65.69]
[1752898937862,3.74034109,177.54,177.53,65.69]
[1752898938598,1.06,177.54,177.53,65.69]
[1752898939077,4.44034109,177.54,177.53,65.69]
[1752898939639,1.06,177.54,177.53,26.03]
[1752898939840,1.06,177.54,177.53,65.67]
[1752898941781,1.06,177.54,177.53,66.39]
[1752898941988,1.06,177.54,177.53,65.67]
[1752898945664,1.76,177.54,177.53,65.67]
[1752898946744,1.06,177.54,177.53,65.67]
[1752898946959,10.0728746,177.54,177.53,65.67]
[1752898947968,9.3728746,177.54,177.53,65.67]
[1752898948669,1.06,177.54,177.53,66.39]
[1752898949272,1.06,177.54,177.53,65.67]
[1752898952075,1.06,177.54,177.53,66.39]
[1752898960077,1.06,177.54,177.53,65.67]
[1752898967691,1.06,177.54,177.53,66.39]
[1752898971801,1.06,177.54,177.53,65.67]
[1752898975111,0.06,177.54,177.53,65.67]
[1752898982018,0.06,177.54,177.53,69.07034109]
[1752898983293,0.06,177.54,177.53,26.03]
[1752898983501,3.45034109,177.54,177.53,65.61]
[1752898985916,3.45034109,177.54,177.53,26.03]
[1752898986099,3.45034109,177.54,177.53,65.61]
[1752898986812,9.0828746,177.54,177.53,65.61]
[1752898987012,3.45034109,177.54,177.53,65.61]
[1752898989124,3.45034109,177.54,177.53,39.61]
[1752898990719,9.0828746,177.54,177.53,39.61]
[1752898990899,9.0828746,177.54,177.53,0.03]
[1752898991739,9.0828746,177.54,177.53,26.03]
[1752898994131,6.40253351,177.54,177.53,0.03]
[1752898994309,9.0828746,177.54,177.53,0.03]
[1752898996926,19.80423896,177.54,177.53,1e-08]
[1752898997138,26.21313896,177.54,177.53,1e-08]
[1752898997339,26.21313896,177.54,177.51,0.03]
[1752898997524,2.68034109,177.52,177.51,0.03]
[1752898997721,2.68034109,177.52,177.49,0.03]
[1752898997948,2.68034109,177.5,177.49,0.03]
[1752898998237,0.7,177.51,177.49,0.03]
[1752898998426,3.38034109,177.5,177.49,0.03]
[1752898998820,9.0141439,177.5,177.49,0.03]
[1752898999719,6.33380281,177.5,177.49,0.03]
[1752898999927,9.0141439,177.5,177.49,0.03]
[1752899000523,6.33380281,177.5,177.49,0.03]
[1752899000729,9.0141439,177.5,177.49,0.03]
[1752899003335,6.33380281,177.5,177.49,0.03]
[1752899003635,9.0141439,177.5,177.49,0.03]
[1752899018266,9.0141439,177.5,177.49,1e-08]
[1752899023370,25.79882787,177.5,177.47,1e-08]
[1752899023564,2.68034109,177.48,177.47,1e-08]
[1752899023763,16.30832961,177.48,177.47,1e-08]
[1752899024076,17.00832961,177.48,177.47,1e-08]
[1752899025163,22.64276729,177.48,177.47,1e-08]
[1752899030474,21.94276729,177.48,177.47,1e-08]
[1752899030685,61.52276729,177.48,177.47,1e-08]
[1752899031471,62.22276729,177.48,177.47,1e-08]
[1752899032896,59.5424262,177.48,177.47,1e-08]
[1752899033093,62.22276729,177.48,177.47,1e-08]
[1752899035284,62.28276729,177.48,177.47,1e-08]
[1752899036978,62.28276729,177.48,177.45,0.03]
[1752899037174,2.68034109,177.46,177.45,0.03]
[1752899037405,42.26034109,177.46,177.45,0.03]
[1752899037603,42.96034109,177.46,177.45,0.03]
[1752899037787,48.59541378,177.46,177.45,0.03]
[1752899039218,48.59541378,177.46,177.45,1e-08]
[1752899039391,62.68309551,177.46,177.41,0.03]
[1752899039586,2.68034109,177.42,177.41,0.03]
[1752899039787,47.89668423,177.42,177.41,0.03]
[1752899040197,48.59668423,177.42,177.41,0.03]
[1752899041487,5.63634314,177.42,177.41,0.03]
[1752899041698,47.89668423,177.42,177.41,0.03]
[1752899042281,9.01668423,177.42,177.41,0.03]
[1752899042685,8.31668423,177.42,177.41,0.03]
[1752899042999,8.31668423,177.42,177.41,0.74]
[1752899043495,8.31668423,177.42,177.41,0.03]
[1752899044014,5.63634314,177.42,177.41,0.03]
[1752899044213,8.31668423,177.42,177.41,0.03]
[1752899044390,11.12069978,177.42,177.41,0.03]
[1752899046216,8.31668423,177.42,177.41,0.69]
[1752899047004,5.63606666,177.43,177.41,0.69]
[1752899047707,42.26034109,177.42,177.41,0.03]
[1752899048623,47.89668423,177.42,177.41,0.03]
[1752899049417,8.31668423,177.42,177.41,0.03]
[1752899051095,8.31668423,177.42,177.41,0.69]
[1752899051601,8.98668423,177.42,177.41,0.03]
[1752899057329,5.63634314,177.42,177.41,0.69]
[1752899057534,47.89668423,177.42,177.41,0.69]
[1752899058031,8.31668423,177.42,177.41,0.69]
[1752899058215,8.31668423,177.42,177.41,0.03]
[1752899059448,8.31668423,177.42,177.41,0.69]
[1752899059656,2.68034109,177.42,177.41,0.69]
[1752899062121,8.31668423,177.42,177.41,0.69]
[1752899062954,8.31644265,177.43,177.41,0.69]
[1752899064627,8.31644265,177.43,177.42,0.66]
[1752899065752,8.31644265,177.43,177.41,0.69]
[1752899070755,0.67,177.45,177.41,0.69]
[1752899070756,5.63570784,177.44,177.41,0.69]
[1752899070956,2.68034109,177.43,177.41,0.69]
[1752899071964,8.31663524,177.43,177.41,0.69]
[1752899072844,8.31663524,177.43,177.41,0.03]
[1752899073060,8.31663524,177.43,177.42,0.66]
[1752899073968,8.31663524,177.43,177.41,0.03]
[1752899074274,8.31663524,177.43,177.41,0.69]
[1752899075541,8.31663524,177.43,177.41,26.69]
[1752899076071,8.31663524,177.43,177.41,26.03]
[1752899076252,8.31663524,177.43,177.42,0.69]
[1752899076767,8.31663524,177.43,177.41,26.72]
[1752899080866,0.06,177.45,177.42,0.69]
[1752899082080,5.69545898,177.45,177.42,0.69]
[1752899083590,2.74034109,177.45,177.43,0.69]
[1752899084063,2.74034109,177.45,177.42,0.69]
[1752899085372,8.37576191,177.45,177.42,0.69]
[1752899085664,5.69542082,177.45,177.42,0.69]
[1752899085977,0.06,177.45,177.44,26.0]
[1752899086379,0.06,177.45,177.44,26.69]
[1752899088367,0.06,177.45,177.44,26.0]
[1752899088995,0.06,177.45,177.44,43.47468397]
[1752899089198,0.06,177.45,177.44,46.15502506]
[1752899089395,0.06,177.45,177.44,51.7907329]
[1752899090690,0.06,177.45,177.44,46.15502506]
[1752899091886,0.06,177.45,177.44,85.69502506]
[1752899096211,0.06,177.45,177.44,83.01468397]
[1752899096420,0.06,177.45,177.44,85.69502506]
[1752899099787,0.06,177.45,177.44,82.32468397]
[1752899099994,0.75,177.45,177.43,16.78468397]
[1752899100193,0.06,177.45,177.43,16.78468397]
[1752899101295,0.06,177.45,177.44,39.52]
[1752899102414,0.06,177.45,177.44,40.21]
[1752899102912,0.06,177.45,177.44,42.89034109]
[1752899103517,0.06,177.45,177.44,59.67502506]
[1752899103925,0.06,177.45,177.44,56.99468397]
[1752899104129,0.06,177.45,177.44,59.67502506]
[1752899110036,0.06,177.45,177.44,56.99468397]
[1752899110336,0.06,177.45,177.44,59.67502506]
[1752899113123,0.06,177.45,177.44,65.3107329]
[1752899113313,0.06,177.45,177.44,59.67502506]
[1752899114738,0.06,177.45,177.44,153.47430368]
[1752899114923,0.06,177.45,177.44,152.9107329]
[1752899143386,0.06,177.45,177.44,152.9407329]
[1752899144007,0.06,177.45,177.44,150.26039181]
[1752899144308,0.06,177.45,177.44,152.2507329]
[1752899145107,0.78,177.45,177.44,152.2507329]
[1752899146301,0.78,177.45,177.44,146.59502506]
[1752899146682,0.78,177.45,177.44,39.53]
[1752899147276,0.78,177.45,177.44,65.53]
[1752899155695,9.09573134,177.45,177.44,26.03]
[1752899159317,0.78,177.45,177.44,26.03]
[1752899159700,0.78,177.45,177.44,65.53]
[1752899162407,0.78,177.45,177.44,26.03]
[1752899162615,3.46034109,177.45,177.44,26.03]
[1752899162818,0.78,177.45,177.44,26.03]